fUST/lending_fUST_20240504
["ID","MTS","AMOUNT","RATE_DAILY","PERIOD"]
[325364888,1714752655932,-380.87625861,0.00025479,2]
[325364889,1714752655942,-500.0,0.00025479,2]
[325364890,1714752655951,-500.0,0.00025479,2]
[325364891,1714752655960,-500.0,0.00025479,2]
[325364892,1714752655969,-500.0,0.00025479,2]
[325364893,1714752655979,-500.0,0.00025479,2]
[325364894,1714752655991,-500.0,0.00025479,2]
[325364895,1714752656001,-500.0,0.00025479,2]
[325364896,1714752656010,-500.0,0.00025479,2]
[325364897,1714752656021,-1297.22,0.00025479,2]
[325364898,1714752656032,-500.0,0.00025479,2]
[325364899,1714752656042,-500.0,0.00025479,2]
[325364900,1714752656052,-512.1,0.00025479,2]
[325364901,1714752656065,-500.0,0.00025479,2]
[325364902,1714752656075,-500.0,0.00025479,2]
[325364903,1714752656085,-500.0,0.00025479,2]
[325364904,1714752656094,-500.0,0.00025479,2]
[325364905,1714752656103,-500.0,0.00025479,2]
[325364906,1714752656112,-500.0,0.00025479,2]
[325364907,1714752656121,-500.0,0.00025479,2]
[325364908,1714752656130,-505.24544539,0.00025479,2]
[325364909,1714752656139,-562.7,0.00025479,2]
[325364910,1714752656148,-503.58757267,0.00025479,2]
[325364911,1714752656159,-500.0,0.00025479,2]
[325364912,1714752656168,-500.0,0.00025479,2]
[325364913,1714752656177,-586.15,0.00025479,2]
[325364914,1714752656187,-643.18,0.00025479,2]
[325364915,1714752656196,-500.0,0.00025479,2]
[325364916,1714752656206,-500.0,0.00025479,2]
[325364917,1714752656215,-500.0,0.00025479,2]
[325364918,1714752656224,-500.0,0.00025479,2]
[325364919,1714752656233,-1159.64,0.00025479,2]
[325364920,1714752656243,-607.56,0.00025479,2]
[325364921,1714752656252,-500.0,0.00025479,2]
[325364922,1714752656262,-1526.51,0.00025479,2]
[325364923,1714752656273,-2142.42,0.00025479,2]
[325364924,1714752656283,-500.0,0.00025479,2]
[325364925,1714752656292,-500.0,0.00025479,2]
[325364926,1714752656302,-500.0,0.00025479,2]
[325364927,1714752656311,-441.8697296,0.00025479,2]
[325364928,1714752656321,-2381.42,0.00025479,2]
[325364929,1714752656330,-500.0,0.00025479,2]
[325364930,1714752656340,-630.7,0.00025479,2]
[325364931,1714752656349,-500.0,0.00025479,2]
[325364932,1714752656359,-500.0,0.00025479,2]
[325364933,1714752656369,-503.22068469,0.00025479,2]
[325364934,1714752656378,-489.69708345,0.00025479,2]
[325364935,1714752656387,-504.38352863,0.00025479,2]
[325364936,1714752656397,-893.73,0.00025479,2]
[325364937,1714752656407,-500.0,0.00025479,2]
[325364938,1714752656416,-3272.0,0.00025479,2]
[325364939,1714752656426,-500.0,0.00025479,2]
[325364940,1714752656436,-500.0,0.00025479,2]
[325364941,1714752656445,-3018.34,0.00025479,2]
[325364942,1714752656455,-500.0,0.00025479,2]
[325364943,1714752656465,-521.73,0.00025479,2]
[325364944,1714752656474,-500.0,0.00025479,2]
[325364945,1714752656484,-500.0,0.00025479,2]
[325364946,1714752656493,-500.0,0.00025479,2]
[325364947,1714752656503,-500.0,0.00025479,2]
[325364948,1714752656513,-500.0,0.00025479,2]
[325364949,1714752656524,-500.0,0.00025479,2]
[325364950,1714752656534,-510.42,0.00025479,2]
[325364951,1714752656544,-533.1,0.00025479,2]
[325364952,1714752656554,-558.54,0.00025479,2]
[325364953,1714752656563,-500.0,0.00025479,2]
[325364954,1714752656572,-703.36,0.00025479,2]
[325364955,1714752656582,-500.0,0.00025479,2]
[325364956,1714752656591,-259.84485979,0.00025479,2]
[325364957,1714752656601,-500.0,0.00025479,2]
[325364958,1714752656610,-500.0,0.00025479,2]
[325364959,1714752656620,-500.0,0.00025479,2]
[325364960,1714752656629,-406.23080281,0.00025479,2]
[325364961,1714752656639,-500.0,0.00025479,2]
[325364962,1714752656648,-538.36160212,0.00025479,2]
[325364963,1714752656658,-1095.57,0.00025479,2]
[325364964,1714752656667,-723.47,0.00025479,2]
[325364965,1714752656677,-1145.55,0.00025479,2]
[325364966,1714752656686,-500.0,0.00025479,2]
[325364967,1714752656696,-500.0,0.00025479,2]
[325364968,1714752656705,-500.0,0.00025479,2]
[325364969,1714752656714,-500.0,0.00025479,2]
[325364970,1714752656724,-617.20399241,0.00025479,2]
[325364971,1714752656733,-287.64326959,0.00025479,2]
[325364972,1714752656742,-564.06,0.00025479,2]
[325364973,1714752656751,-500.0,0.00025479,2]
[325364974,1714752656760,-1500.12,0.00025479,2]
[325364975,1714752656770,-1269.66,0.00025479,2]
[325364976,1714752656780,-803.56,0.00025479,2]
[325364977,1714752656788,-500.0,0.00025479,2]
[325364978,1714752656798,-500.0,0.00025479,2]
[325364979,1714752656807,-500.0,0.00025479,2]
[325364980,1714752656816,-500.0,0.00025479,2]
[325364981,1714752656825,-500.0,0.00025479,2]
[325364982,1714752656834,-500.0,0.00025479,2]
[325364983,1714752656843,-5450.43,0.00025479,2]
[325364984,1714752656852,-500.0,0.00025479,2]
[325364985,1714752656861,-9639.94,0.00025479,2]
[325364986,1714752656871,-500.0,0.00025479,2]
[325364987,1714752656881,-500.0,0.00025479,2]
[325364988,1714752656890,-500.0,0.00025479,2]
[325364989,1714752656899,-2863.96,0.00025479,2]
[325364990,1714752656909,-500.0,0.00025479,2]
[325364991,1714752656918,-5846.76,0.00025479,2]
[325364992,1714752656928,-655.08,0.00025479,2]
[325364993,1714752656937,-500.0,0.00025479,2]
[325364994,1714752656946,-500.0,0.00025479,2]
[325364995,1714752656955,-500.0,0.00025479,2]
[325364996,1714752656965,-1488.25,0.00025479,2]
[325364997,1714752656974,-8763.49,0.00025479,2]
[325364998,1714752656985,-500.0,0.00025479,2]
[325364999,1714752656995,-393.58724995,0.00025479,2]
[325365000,1714752657004,-500.0,0.00025479,2]
[325365001,1714752657013,-500.0,0.00025479,2]
[325365002,1714752657023,-649.18,0.00025479,2]
[325365003,1714752657034,-954.84,0.00025479,2]
[325365004,1714752657043,-919.36,0.00025479,2]
[325365005,1714752657053,-3161.56,0.00025479,2]
[325365006,1714752657065,-500.0,0.00025479,2]
[325365007,1714752657075,-500.0,0.00025479,2]
[325365008,1714752657084,-1417.26,0.00025479,2]
[325365009,1714752657093,-826.39,0.00025479,2]
[325365010,1714752657102,-500.0,0.00025479,2]
[325365011,1714752657112,-500.0,0.00025479,2]
[325365012,1714752657122,-500.0,0.00025479,2]
[325365013,1714752657131,-609.36,0.00025479,2]
[325365014,1714752657141,-500.0,0.00025479,2]
[325365015,1714752657150,-500.0,0.00025479,2]
[325365016,1714752657159,-500.0,0.00025479,2]
[325365017,1714752657168,-500.0,0.00025479,2]
[325365018,1714752657178,-500.0,0.00025479,2]
[325365019,1714752657187,-500.0,0.00025479,2]
[325365020,1714752657196,-500.0,0.00025479,2]
[325365021,1714752657205,-500.0,0.00025479,2]
[325365022,1714752657214,-500.0,0.00025479,2]
[325365023,1714752657223,-2231.64,0.00025479,2]
[325365024,1714752657232,-168.53765042,0.00025479,2]
[325365025,1714752657242,-1036.61,0.00025479,2]
[325365026,1714752657251,-500.0,0.00025479,2]
[325365027,1714752657261,-1809.29,0.00025479,2]
[325365028,1714752657271,-518.69,0.00025479,2]
[325365029,1714752657280,-2033.06,0.00025479,2]
[325365030,1714752657290,-661.84,0.00025479,2]
[325365031,1714752657300,-1304.22,0.00025479,2]
[325365032,1714752657310,-500.0,0.00025479,2]
[325365033,1714752657320,-841.9,0.00025479,2]
[325365034,1714752657329,-4270.44,0.00025479,2]
[325365035,1714752657338,-500.0,0.00025479,2]
[325365036,1714752657439,-500.0,0.00025479,2]
[325365037,1714752657450,-651.21,0.00025479,2]
[325365038,1714752657460,-500.0,0.00025479,2]
[325365039,1714752657470,-500.0,0.00025479,2]
[325365040,1714752657479,-539.59,0.00025479,2]
[325365041,1714752657489,-641.97,0.00025479,2]
[325365042,1714752657498,-500.0,0.00025479,2]
[325365043,1714752657508,-5444.24,0.00025479,2]
[325365044,1714752657520,-500.0,0.00025479,2]
[325365045,1714752657530,-2248.39,0.00025479,2]
[325365046,1714752657539,-1173.15,0.00025479,2]
[325365047,1714752657549,-41696.51,0.00025479,2]
[325365048,1714752657558,-812.09,0.00025479,2]
[325365049,1714752657568,-502.38897325,0.00025479,2]
[325365050,1714752657577,-500.0,0.00025479,2]
[325365051,1714752657587,-500.0,0.00025479,2]
[325365052,1714752657597,-1369.8,0.00025479,2]
[325365053,1714752657607,-500.0,0.00025479,2]
[325365054,1714752657616,-1026.08,0.00025479,2]
[325365055,1714752657626,-3496.05,0.00025479,2]
[325365056,1714752657635,-500.0,0.00025479,2]
[325365057,1714752657644,-500.0,0.00025479,2]
[325365058,1714752657653,-500.0,0.00025479,2]
[325365059,1714752657662,-5620.69,0.00025479,2]
[325365060,1714752657671,-502.58,0.00025479,2]
[325365061,1714752657681,-560.58,0.00025479,2]
[325365062,1714752657690,-1067.14,0.00025479,2]
[325365063,1714752657699,-500.0,0.00025479,2]
[325365064,1714752657708,-500.0,0.00025479,2]
[325365065,1714752657718,-500.0,0.00025479,2]
[325365066,1714752657727,-500.0,0.00025479,2]
[325365067,1714752657736,-500.0,0.00025479,2]
[325365068,1714752657746,-500.0,0.00025479,2]
[325365069,1714752657755,-500.0,0.00025479,2]
[325365070,1714752657764,-783.3,0.00025479,2]
[325365071,1714752657774,-2448.4,0.00025479,2]
[325365072,1714752657783,-513.96,0.00025479,2]
[325365073,1714752657794,-500.0,0.00025479,2]
[325365074,1714752657803,-198.72828565,0.00025479,2]
[325365075,1714752657812,-816.54,0.00025479,2]
[325365076,1714752657821,-1009.08,0.00025479,2]
[325365077,1714752657830,-900.6,0.00025479,2]
[325365078,1714752657839,-500.0,0.00025479,2]
[325365079,1714752657848,-500.0,0.00025479,2]
[325365080,1714752657857,-1263.57,0.00025479,2]
[325365081,1714752657866,-1057.19,0.00025479,2]
[325365082,1714752657875,-744.34,0.00025479,2]
[325365083,1714752657884,-500.0,0.00025479,2]
[325365084,1714752657893,-500.0,0.00025479,2]
[325365085,1714752657902,-549.85243376,0.00025479,2]
[325365086,1714752657911,-500.0,0.00025479,2]
[325365087,1714752657920,-500.0,0.00025479,2]
[325365088,1714752657929,-500.0,0.00025479,2]
[325365089,1714752657938,-11373.14,0.00025479,2]
[325365090,1714752657947,-500.0,0.00025479,2]
[325365091,1714752657956,-500.0,0.00025479,2]
[325365092,1714752657966,-561.08,0.00025479,2]
[325365093,1714752657975,-395.63445721,0.00025479,2]
[325365094,1714752657985,-550.38277436,0.00025479,2]
[325365095,1714752657998,-500.0,0.00025479,2]
[325365096,1714752658007,-1599.42,0.00025479,2]
[325365097,1714752658017,-500.0,0.00025479,2]
[325365098,1714752658028,-9072.72,0.00025479,2]
[325365099,1714752658037,-500.0,0.00025479,2]
[325365100,1714752658047,-514.23,0.00025479,2]
[325365101,1714752658057,-500.0,0.00025479,2]
[325365102,1714752658070,-977.23,0.00025479,2]
[325365103,1714752658079,-1156.58,0.00025479,2]
[325365104,1714752658088,-1114.81,0.00025479,2]
[325365105,1714752658098,-500.0,0.00025479,2]
[325365106,1714752658107,-1435.75,0.00025479,2]
[325365107,1714752658116,-1214.88,0.00025479,2]
[325365108,1714752658126,-500.0,0.00025479,2]
[325365109,1714752658135,-500.0,0.00025479,2]
[325365110,1714752658144,-1377.22,0.00025479,2]
[325365111,1714752658154,-609.08731,0.000255,2]
[325365112,1714752658163,-160.0,0.00025525,2]
[325365113,1714752658172,-609.08731,0.000256,2]
[325365114,1714752658181,-609.08731,0.000257,2]
[325365115,1714752658190,-500.0,0.00025753,2]
[325365116,1714752658198,-500.0,0.00025753,2]
[325365117,1714752658207,-500.0,0.00025753,2]
[325365118,1714752658217,-500.0,0.00025753,2]
[325365119,1714752658226,-500.0,0.00025753,2]
[325365120,1714752658235,-588.8,0.00025753,2]
[325365121,1714752658244,-500.0,0.00025753,2]
[325365122,1714752658257,-597.46,0.00025753,2]
[325365123,1714752658267,-500.0,0.00025753,2]
[325365124,1714752658277,-500.0,0.00025753,2]
[325365125,1714752658286,-500.0,0.00025753,2]
[325365126,1714752658295,-500.0,0.00025753,2]
[325365127,1714752658305,-500.0,0.00025753,2]
[325365128,1714752658315,-500.0,0.00025753,2]
[325365129,1714752658325,-631.93,0.00025753,2]
[325365130,1714752658334,-500.0,0.00025753,2]
[325365131,1714752658345,-500.0,0.00025753,2]
[325365132,1714752658355,-887.56,0.00025753,2]
[325365133,1714752658364,-500.0,0.00025753,2]
[325365134,1714752658374,-804.94,0.00025753,2]
[325365135,1714752658383,-500.0,0.00025753,2]
[325365136,1714752658393,-2485.15,0.00025753,2]
[325365137,1714752658402,-504.46566629,0.00025753,2]
[325365138,1714752658412,-500.0,0.00025753,2]
[325365139,1714752658421,-500.0,0.00025753,2]
[325365140,1714752658431,-500.0,0.00025753,2]
[325365141,1714752658442,-500.0,0.00025753,2]
[325365142,1714752658452,-432.47490722,0.00025753,2]
[325365143,1714752658462,-500.0,0.00025753,2]
[325365144,1714752658471,-1245.86,0.00025753,2]
[325365145,1714752658480,-500.0,0.00025753,2]
[325365146,1714752658490,-625.08,0.00025753,2]
[325365147,1714752658500,-500.0,0.00025753,2]
[325365148,1714752658509,-500.0,0.00025753,2]
[325365149,1714752658520,-500.0,0.00025753,2]
[325365150,1714752658530,-806.09,0.00025753,2]
[325365151,1714752658539,-500.0,0.00025753,2]
[325365152,1714752658549,-500.0,0.00025753,2]
[325365153,1714752658558,-500.0,0.00025753,2]
[325365154,1714752658567,-500.0,0.00025753,2]
[325365155,1714752658576,-500.0,0.00025753,2]
[325365156,1714752658585,-500.0,0.00025753,2]
[325365157,1714752658594,-500.0,0.00025753,2]
[325365158,1714752658603,-500.0,0.00025753,2]
[325365159,1714752658613,-500.0,0.00025753,2]
[325365160,1714752658622,-500.0,0.00025753,2]
[325365161,1714752658632,-500.0,0.00025753,2]
[325365162,1714752658642,-1297.22,0.00025753,2]
[325365163,1714752658651,-500.0,0.00025753,2]
[325365164,1714752658660,-500.0,0.00025753,2]
[325365165,1714752658669,-512.1,0.00025753,2]
[325365166,1714752658678,-500.0,0.00025753,2]
[325365167,1714752658688,-400.0,0.00025753,2]
[325365168,1714752658697,-500.0,0.00025753,2]
[325365169,1714752658706,-500.0,0.00025753,2]
[325365170,1714752658716,-500.0,0.00025753,2]
[325365171,1714752658725,-500.0,0.00025753,2]
[325365172,1714752658734,-500.0,0.00025753,2]
[325365173,1714752658744,-562.7,0.00025753,2]
[325365174,1714752658753,-500.0,0.00025753,2]
[325365175,1714752658762,-503.45034522,0.00025753,2]
[325365176,1714752658771,-586.15,0.00025753,2]
[325365177,1714752658780,-643.18,0.00025753,2]
[325365178,1714752658789,-500.0,0.00025753,2]
[325365179,1714752658799,-500.0,0.00025753,2]
[325365180,1714752658808,-500.0,0.00025753,2]
[325365181,1714752658817,-1159.64,0.00025753,2]
[325365182,1714752658826,-607.56,0.00025753,2]
[325365183,1714752658835,-500.0,0.00025753,2]
[325365184,1714752658845,-1526.51,0.00025753,2]
[325365185,1714752658854,-2142.42,0.00025753,2]
[325365186,1714752658863,-500.0,0.00025753,2]
[325365187,1714752658873,-500.0,0.00025753,2]
[325365188,1714752658882,-500.0,0.00025753,2]
[325365189,1714752658891,-2381.42,0.00025753,2]
[325365190,1714752658900,-544.64551293,0.00025753,2]
[325365191,1714752658910,-630.7,0.00025753,2]
[325365192,1714752658919,-500.0,0.00025753,2]
[325365193,1714752658928,-509.86950949,0.00025753,2]
[325365194,1714752658938,-893.73,0.00025753,2]
[325365195,1714752658948,-500.0,0.00025753,2]
[325365196,1714752658957,-3272.0,0.00025753,2]
[325365197,1714752658966,-500.0,0.00025753,2]
[325365198,1714752658975,-500.0,0.00025753,2]
[325365199,1714752658986,-3018.34,0.00025753,2]
[325365200,1714752658999,-500.0,0.00025753,2]
[325365201,1714752659008,-521.73,0.00025753,2]
[325365202,1714752659018,-500.0,0.00025753,2]
[325365203,1714752659028,-500.0,0.00025753,2]
[325365204,1714752659039,-500.0,0.00025753,2]
[325365205,1714752659048,-500.0,0.00025753,2]
[325365206,1714752659058,-500.0,0.00025753,2]
[325365207,1714752659070,-500.0,0.00025753,2]
[325365208,1714752659080,-510.42,0.00025753,2]
[325365209,1714752659090,-533.1,0.00025753,2]
[325365210,1714752659099,-558.54,0.00025753,2]
[325365211,1714752659108,-500.0,0.00025753,2]
[325365212,1714752659118,-703.36,0.00025753,2]
[325365213,1714752659127,-505.50748283,0.00025753,2]
[325365214,1714752659136,-500.0,0.00025753,2]
[325365215,1714752659146,-500.0,0.00025753,2]
[325365216,1714752659155,-500.0,0.00025753,2]
[325365217,1714752659164,-500.0,0.00025753,2]
[325365218,1714752659173,-1095.57,0.00025753,2]
[325365219,1714752659183,-723.47,0.00025753,2]
[325365220,1714752659192,-1145.55,0.00025753,2]
[325365221,1714752659201,-500.0,0.00025753,2]
[325365222,1714752659210,-500.0,0.00025753,2]
[325365223,1714752659220,-500.0,0.00025753,2]
[325365224,1714752659229,-500.0,0.00025753,2]
[325365225,1714752659238,-564.06,0.00025753,2]
[325365226,1714752659247,-500.0,0.00025753,2]
[325365227,1714752659350,-1500.12,0.00025753,2]
[325365228,1714752659360,-1269.66,0.00025753,2]
[325365229,1714752659370,-803.56,0.00025753,2]
[325365230,1714752659380,-500.0,0.00025753,2]
[325365231,1714752659389,-500.0,0.00025753,2]
[325365232,1714752659398,-500.0,0.00025753,2]
[325365233,1714752659408,-500.0,0.00025753,2]
[325365234,1714752659417,-500.0,0.00025753,2]
[325365235,1714752659427,-5450.43,0.00025753,2]
[325365236,1714752659436,-500.0,0.00025753,2]
[325365237,1714752659445,-9639.94,0.00025753,2]
[325365238,1714752659455,-500.0,0.00025753,2]
[325365239,1714752659464,-500.0,0.00025753,2]
[325365240,1714752659474,-500.0,0.00025753,2]
[325365241,1714752659483,-2863.96,0.00025753,2]
[325365242,1714752659492,-500.0,0.00025753,2]
[325365243,1714752659502,-5846.76,0.00025753,2]
[325365244,1714752659511,-655.08,0.00025753,2]
[325365245,1714752659522,-501.72818795,0.00025753,2]
[325365246,1714752659531,-500.0,0.00025753,2]
[325365247,1714752659541,-500.0,0.00025753,2]
[325365248,1714752659551,-1488.25,0.00025753,2]
[325365249,1714752659560,-8763.49,0.00025753,2]
[325365250,1714752659570,-500.0,0.00025753,2]
[325365251,1714752659579,-500.0,0.00025753,2]
[325365252,1714752659588,-500.0,0.00025753,2]
[325365253,1714752659598,-649.18,0.00025753,2]
[325365254,1714752659607,-954.84,0.00025753,2]
[325365255,1714752659617,-919.36,0.00025753,2]
[325365256,1714752659627,-3161.56,0.00025753,2]
[325365257,1714752659638,-500.0,0.00025753,2]
[325365258,1714752659648,-505.39695414,0.00025753,2]
[325365259,1714752659658,-1417.26,0.00025753,2]
[325365260,1714752659667,-826.39,0.00025753,2]
[325365261,1714752659677,-500.0,0.00025753,2]
[325365262,1714752659686,-500.0,0.00025753,2]
[325365263,1714752659696,-609.36,0.00025753,2]
[325365264,1714752659705,-500.0,0.00025753,2]
[325365265,1714752659714,-500.0,0.00025753,2]
[325365266,1714752659723,-500.0,0.00025753,2]
[325365267,1714752659733,-500.0,0.00025753,2]
[325365268,1714752659743,-500.0,0.00025753,2]
[325365269,1714752659753,-500.0,0.00025753,2]
[325365270,1714752659762,-500.0,0.00025753,2]
[325365271,1714752659771,-500.0,0.00025753,2]
[325365272,1714752659780,-500.0,0.00025753,2]
[325365273,1714752659790,-500.0,0.00025753,2]
[325365274,1714752659799,-2231.64,0.00025753,2]
[325365275,1714752659808,-1036.61,0.00025753,2]
[325365276,1714752659817,-500.0,0.00025753,2]
[325365277,1714752659827,-1809.29,0.00025753,2]
[325365278,1714752659836,-2033.06,0.00025753,2]
[325365279,1714752659845,-661.84,0.00025753,2]
[325365280,1714752659855,-1304.22,0.00025753,2]
[325365281,1714752659864,-500.0,0.00025753,2]
[325365282,1714752659874,-841.9,0.00025753,2]
[325365283,1714752659883,-4270.44,0.00025753,2]
[325365284,1714752659893,-500.0,0.00025753,2]
[325365285,1714752659902,-500.0,0.00025753,2]
[325365286,1714752659912,-651.21,0.00025753,2]
[325365287,1714752659921,-361.32921046,0.00025753,2]
[325365288,1714752659931,-500.0,0.00025753,2]
[325365289,1714752659941,-641.97,0.00025753,2]
[325365290,1714752659951,-539.59,0.00025753,2]
[325365291,1714752659960,-500.0,0.00025753,2]
[325365292,1714752659970,-5444.24,0.00025753,2]
[325365293,1714752659979,-500.0,0.00025753,2]
[325365294,1714752659994,-2248.39,0.00025753,2]
[325365295,1714752660003,-1173.15,0.00025753,2]
[325365296,1714752660013,-41696.51,0.00025753,2]
[325365297,1714752660024,-812.09,0.00025753,2]
[325365298,1714752660036,-500.0,0.00025753,2]
[325365299,1714752660045,-500.0,0.00025753,2]
[325365300,1714752660055,-1369.8,0.00025753,2]
[325365301,1714752660070,-500.0,0.00025753,2]
[325365302,1714752660079,-1026.08,0.00025753,2]
[325365303,1714752660089,-3496.05,0.00025753,2]
[325365304,1714752660098,-500.0,0.00025753,2]
[325365305,1714752660107,-500.0,0.00025753,2]
[325365306,1714752660116,-500.0,0.00025753,2]
[325365307,1714752660125,-5620.69,0.00025753,2]
[325365308,1714752660134,-502.58,0.00025753,2]
[325365309,1714752660143,-560.58,0.00025753,2]
[325365310,1714752660153,-1067.14,0.00025753,2]
[325365311,1714752660162,-500.0,0.00025753,2]
[325365312,1714752660171,-500.0,0.00025753,2]
[325365313,1714752660180,-500.0,0.00025753,2]
[325365314,1714752660189,-500.0,0.00025753,2]
[325365315,1714752660199,-500.0,0.00025753,2]
[325365316,1714752660209,-500.0,0.00025753,2]
[325365317,1714752660219,-500.0,0.00025753,2]
[325365318,1714752660228,-783.3,0.00025753,2]
[325365319,1714752660237,-2448.4,0.00025753,2]
[325365320,1714752660247,-513.96,0.00025753,2]
[325365321,1714752660256,-509.46990006,0.00025753,2]
[325365322,1714752660266,-816.54,0.00025753,2]
[325365323,1714752660275,-1009.08,0.00025753,2]
[325365324,1714752660285,-900.6,0.00025753,2]
[325365325,1714752660294,-500.0,0.00025753,2]
[325365326,1714752660304,-500.0,0.00025753,2]
[325365327,1714752660313,-1263.57,0.00025753,2]
[325365328,1714752660322,-744.34,0.00025753,2]
[325365329,1714752660332,-500.0,0.00025753,2]
[325365330,1714752660342,-1057.19,0.00025753,2]
[325365331,1714752660352,-500.0,0.00025753,2]
[325365332,1714752660361,-500.0,0.00025753,2]
[325365333,1714752660371,-500.0,0.00025753,2]
[325365334,1714752660380,-500.0,0.00025753,2]
[325365335,1714752660390,-11373.14,0.00025753,2]
[325365336,1714752660399,-497.16,0.00025753,2]
[325365337,1714752660408,-500.0,0.00025753,2]
[325365338,1714752660418,-561.08,0.00025753,2]
[325365339,1714752660428,-231.62518169,0.00025753,2]
[325365340,1714752660438,-1599.42,0.00025753,2]
[325365341,1714752660447,-510.25061869,0.00025753,2]
[325365342,1714752660456,-9072.72,0.00025753,2]
[325365343,1714752660468,-510.729444,0.00025753,2]
[325365344,1714752660481,-514.23,0.00025753,2]
[325365345,1714752660490,-505.4940227,0.00025753,2]
[325365346,1714752660499,-977.23,0.00025753,2]
[325365347,1714752660509,-1156.58,0.00025753,2]
[325365348,1714752660519,-1114.81,0.00025753,2]
[325365349,1714752660528,-500.0,0.00025753,2]
[325365350,1714752660537,-1435.75,0.00025753,2]
[325365351,1714752660547,-1214.88,0.00025753,2]
[325365352,1714752660556,-1377.22,0.00025753,2]
[325365353,1714752660565,-609.08731,0.000258,2]
[325365354,1714752660575,-150.65349696,0.00025846,2]
[325365355,1714752660585,-609.08731,0.000259,2]
[325365356,1714752660595,-609.08731,0.00026,2]
[325365357,1714752660604,-500.0,0.00026027,2]
[325365358,1714752660614,-500.0,0.00026027,2]
[325365359,1714752660624,-500.0,0.00026027,2]
[325365360,1714752660634,-502.08679768,0.00026027,2]
[325365361,1714752660643,-588.8,0.00026027,2]
[325365362,1714752660653,-418.51816884,0.00026027,2]
[325365363,1714752660664,-597.46,0.00026027,2]
[325365364,1714752660673,-500.0,0.00026027,2]
[325365365,1714752660683,-500.0,0.00026027,2]
[325365366,1714752660692,-500.0,0.00026027,2]
[325365367,1714752660701,-510.14275858,0.00026027,2]
[325365368,1714752660710,-500.0,0.00026027,2]
[325365369,1714752660720,-500.0,0.00026027,2]
[325365370,1714752660729,-631.93,0.00026027,2]
[325365371,1714752660738,-500.0,0.00026027,2]
[325365372,1714752660748,-502.50673469,0.00026027,2]
[325365373,1714752660757,-887.56,0.00026027,2]
[325365374,1714752660767,-500.0,0.00026027,2]
[325365375,1714752660777,-804.94,0.00026027,2]
[325365376,1714752660786,-500.0,0.00026027,2]
[325365377,1714752660795,-2485.15,0.00026027,2]
[325365378,1714752660804,-532.18357394,0.00026027,2]
[325365379,1714752660814,-500.0,0.00026027,2]
[325365380,1714752660824,-502.54309442,0.00026027,2]
[325365381,1714752660834,-500.0,0.00026027,2]
[325365382,1714752660843,-500.0,0.00026027,2]
[325365383,1714752660853,-1245.86,0.00026027,2]
[325365384,1714752660862,-500.0,0.00026027,2]
[325365385,1714752660871,-625.08,0.00026027,2]
[325365386,1714752660881,-500.0,0.00026027,2]
[325365387,1714752660890,-500.0,0.00026027,2]